fUST/lending_fUST_20251016
["ID","MTS","AMOUNT","RATE_DAILY","PERIOD"]
[391524654,1760629838984,-689.18,0.00032151,60]
[391524655,1760629838996,-689.18,0.00032151,60]
[391524656,1760629839008,-689.18,0.00032151,60]
[391524657,1760629839019,-689.18,0.00032151,60]
[391524658,1760629839030,-689.18,0.00032151,60]
[391524659,1760629839042,-689.18,0.00032151,60]
[391524660,1760629839054,-689.18,0.00032151,60]
[391524661,1760629839066,-689.18,0.00032151,60]
[391524662,1760629839080,-689.18,0.00032151,60]
[391524663,1760629839094,-689.18,0.00032151,60]
[391524664,1760629839106,-689.18,0.00032151,60]
[391524665,1760629839119,-689.18,0.00032151,60]
[391524666,1760629839131,-689.18,0.00032151,60]
[391524667,1760629839144,-689.18,0.00032151,60]
[391524668,1760629839155,-689.29851829,0.00032151,60]
[391524669,1760629839165,-648.71951102,0.00032151,60]
[391524670,1760629839175,-500.0,0.00032151,60]
[391524671,1760629839186,-500.0,0.00032151,60]
[391524672,1760629839196,-500.0,0.00032151,60]
[391524673,1760629839206,-500.0,0.00032151,60]
[391524674,1760629839216,-500.0,0.00032151,60]
[391524675,1760629839226,-502.86900114,0.00032151,60]
[391524676,1760629839237,-603.10472558,0.00032151,60]
[391524677,1760629839247,-500.74682711,0.00032151,60]
[391524678,1760629839258,-500.0,0.00032151,60]
[391524679,1760629839268,-625.78566212,0.00032151,60]
[391524680,1760629839278,-500.0,0.00032151,60]
[391524681,1760629839289,-500.0,0.00032151,60]
[391524682,1760629839303,-500.0,0.00032151,60]
[391524683,1760629839313,-500.0,0.00032151,60]
[391524684,1760629839324,-500.0,0.00032151,60]
[391524685,1760629839336,-500.0,0.00032151,60]
[391524686,1760629839352,-500.0,0.00032151,60]
[391524687,1760629839363,-500.0,0.00032151,60]
[391524688,1760629839375,-327.53727812,0.00032151,60]
[391524689,1760629839387,-500.0,0.00032151,60]
[391524690,1760629839398,-500.0,0.00032151,60]
[391524691,1760629839410,-500.0,0.00032151,60]
[391524692,1760629839421,-500.0,0.00032151,60]
[391524693,1760629839433,-500.0,0.00032151,60]
[391524694,1760629839445,-500.0,0.00032151,60]
[391524695,1760629839456,-500.0,0.00032151,60]
[391524696,1760629839466,-500.0,0.00032151,60]
[391524697,1760629839476,-500.0,0.00032151,60]
[391524698,1760629839487,-500.0,0.00032151,60]
[391524699,1760629839497,-500.0,0.00032151,60]
[391524700,1760629839507,-500.0,0.00032151,60]
[391524701,1760629839518,-613.86250346,0.00032151,60]
[391524702,1760629839529,-500.0,0.00032151,60]
[391524703,1760629839539,-334.81742049,0.00032151,60]
[391524704,1760629839549,-500.0,0.00032151,60]
[391524705,1760629839560,-500.0,0.00032151,60]
[391524706,1760629839572,-500.0,0.00032151,60]
[391524707,1760629839582,-500.0,0.00032151,60]
[391524708,1760629839598,-500.0,0.00032151,60]
[391524709,1760629839609,-560.49606662,0.00032151,60]
[391524710,1760629839621,-502.81059972,0.00032151,60]
[391524711,1760629839632,-500.0,0.00032151,60]
[391524712,1760629839644,-500.0,0.00032151,60]
[391524713,1760629839655,-500.0,0.00032151,60]
[391524714,1760629839666,-500.0,0.00032151,60]
[391524715,1760629839676,-492.66000756,0.00032151,60]
[391524716,1760629839687,-504.88852548,0.00032151,60]
[391524717,1760629839697,-500.0,0.00032151,60]
[391524718,1760629839708,-500.0,0.00032151,60]
[391524721,1760629839718,-500.0,0.00032151,60]
[391524723,1760629839729,-500.0,0.00032151,60]
[391524724,1760629839739,-612.01825813,0.00032151,60]
[391524726,1760629839750,-500.0,0.00032151,60]
[391524728,1760629839760,-500.0,0.00032151,60]
[391524730,1760629839770,-500.0,0.00032151,60]
[391524731,1760629839780,-500.0,0.00032151,60]
[391524732,1760629839791,-500.0,0.00032151,60]
[391524733,1760629839802,-500.0,0.00032151,60]
[391524734,1760629839812,-500.0,0.00032151,60]
[391524735,1760629839822,-500.0,0.00032151,60]
[391524736,1760629839832,-500.0,0.00032151,60]
[391524737,1760629839844,-500.0,0.00032151,60]
[391524738,1760629839859,-312.37961327,0.00032151,60]
[391524739,1760629839870,-156.17195308,0.00032151,60]
[391524741,1760629839881,-501.74502493,0.00032151,60]
[391524742,1760629839894,-500.0,0.00032151,60]
[391524743,1760629839904,-500.0,0.00032151,60]
[391524744,1760629839915,-500.0,0.00032151,60]
[391524745,1760629839926,-500.0,0.00032151,60]
[391524746,1760629839937,-500.0,0.00032151,60]
[391524747,1760629839947,-500.0,0.00032151,60]
[391524748,1760629839958,-500.0,0.00032151,60]
[391524749,1760629839969,-418.1626602,0.00032151,60]
[391524750,1760629839979,-500.57936197,0.00032151,60]
[391524751,1760629839991,-500.0,0.00032151,60]
[391524752,1760629840002,-500.0,0.00032151,60]
[391524753,1760629840012,-500.0,0.00032151,60]
[391524754,1760629840023,-500.0,0.00032151,60]
[391524755,1760629840034,-504.6829367,0.00032151,60]
[391524757,1760629840045,-500.0,0.00032151,60]
[391524759,1760629840055,-500.0,0.00032151,60]
[391524761,1760629840067,-500.0,0.00032151,60]
[391524763,1760629840079,-500.0,0.00032151,60]
[391524765,1760629840092,-500.0,0.00032151,60]
[391524767,1760629840102,-500.0,0.00032151,60]
[391524768,1760629840113,-351.64482863,0.00032151,60]
[391524769,1760629840123,-522.62084603,0.00032151,60]
[391524770,1760629840133,-500.0,0.00032151,60]
[391524771,1760629840143,-509.61137865,0.00032151,60]
[391524772,1760629840154,-500.0,0.00032151,60]
[391524773,1760629840164,-500.0,0.00032151,60]
[391524774,1760629840174,-500.0,0.00032151,60]
[391524775,1760629840184,-500.0,0.00032151,60]
[391524777,1760629840194,-500.0,0.00032151,60]
[391524779,1760629840204,-500.0,0.00032151,60]
[391524780,1760629840214,-500.0,0.00032151,60]
[391524781,1760629840224,-500.0,0.00032151,60]
[391524782,1760629840234,-500.0,0.00032151,60]
[391524783,1760629840246,-500.0,0.00032151,60]
[391524784,1760629840256,-500.0,0.00032151,60]
[391524785,1760629840266,-500.0,0.00032151,60]
[391524786,1760629840276,-500.0,0.00032151,60]
[391524787,1760629840287,-500.0,0.00032151,60]
[391524788,1760629840297,-500.0,0.00032151,60]
[391524789,1760629840307,-524.93882984,0.00032151,60]
[391524792,1760629840319,-500.0,0.00032151,60]
[391524793,1760629840551,-500.0,0.00032151,60]
[391524794,1760629840561,-500.0,0.00032151,60]
[391524795,1760629840571,-500.0,0.00032151,60]
[391524796,1760629840581,-500.0,0.00032151,60]
[391524797,1760629840594,-500.0,0.00032151,60]
[391524798,1760629840605,-500.0,0.00032151,60]
[391524799,1760629840614,-500.0,0.00032151,60]
[391524801,1760629840624,-500.0,0.00032151,60]
[391524803,1760629840633,-489.01,0.00032151,60]
[391524804,1760629840643,-500.0,0.00032151,60]
[391524805,1760629840653,-500.0,0.00032151,60]
[391524806,1760629840663,-500.0,0.00032151,60]
[391524807,1760629840672,-212.11632826,0.00032151,60]
[391524808,1760629840682,-151.0,0.00032174,7]
[391524809,1760629840693,-151.0,0.00032174,7]
[391524810,1760629840702,-151.0,0.00032174,7]
[391524811,1760629840712,-284.87523743,0.00032174,7]
[391524812,1760629840722,-500.0,0.00032174,7]
[391524813,1760629840731,-151.0,0.00032174,7]
[391524814,1760629840740,-151.0,0.00032174,7]
[391524815,1760629840750,-221.93345763,0.00032174,7]
[391524816,1760629840760,-151.0,0.00032174,7]
[391524817,1760629840769,-151.0,0.00032174,7]
[391524818,1760629840779,-501.22884778,0.0003218,5]
[391524819,1760629840789,-500.0,0.00032204,5]
[391524820,1760629840798,-500.0,0.00032204,5]
[391524821,1760629840808,-500.0,0.00032204,5]
[391524822,1760629840817,-500.0,0.00032204,5]
[391524823,1760629840827,-152.81553816,0.00032204,5]
[391524824,1760629840841,-500.0,0.00032204,3]
[391524825,1760629840854,-266.85571483,0.00032204,5]
[391524826,1760629840864,-500.0,0.00032204,5]
[391524827,1760629840874,-417.20128313,0.00032204,5]
[391524828,1760629840885,-342.56588263,0.00032209,5]
[391524829,1760629840895,-500.0,0.00032209,5]
[391524830,1760629840906,-500.2607671,0.00032212,5]
[391524831,1760629840916,-500.0,0.00032215,5]
[391524832,1760629840927,-151.0,0.00032229,7]
[391524833,1760629840937,-159.083756,0.00032229,7]
[391524834,1760629840947,-500.0,0.00032229,7]
[391524835,1760629840957,-151.0,0.00032229,7]
[391524836,1760629840967,-198.0,0.00032229,7]
[391524837,1760629840977,-151.0,0.00032229,7]
[391524838,1760629840987,-176.28429108,0.00032284,7]
[391524839,1760629840997,-500.0,0.00032284,7]
[391524840,1760629841008,-151.0,0.00032284,7]
[391524841,1760629841019,-151.0,0.00032284,7]
[391524842,1760629841029,-1000.0,0.00032321,5]
[391524843,1760629841039,-500.0,0.00032338,7]
[391524844,1760629841049,-161.0,0.00032338,7]
[391524845,1760629841059,-151.0,0.00032338,7]
[391524846,1760629841069,-500.0,0.00032381,2]
[391524847,1760629841078,-500.0,0.00032393,7]
[391524848,1760629841090,-235.14722921,0.00032393,7]
[391524849,1760629841100,-500.0,0.00032448,7]
[391524850,1760629841111,-300.0,0.00032469,30]
[391524851,1760629841121,-300.0,0.00032469,30]
[391524852,1760629841131,-300.0,0.00032469,30]
[391524853,1760629841140,-300.0,0.00032469,30]
[391524854,1760629841151,-300.0,0.00032469,30]
[391524855,1760629841160,-300.0,0.00032469,30]
[391524856,1760629841170,-300.0,0.00032469,30]
[391524857,1760629841180,-300.0,0.00032469,30]
[391524858,1760629841190,-300.0,0.00032469,30]
[391524859,1760629841199,-300.0,0.00032469,30]
[391524860,1760629841209,-300.0,0.00032469,30]
[391524861,1760629841218,-300.0,0.00032469,30]
[391524862,1760629841228,-300.0,0.00032469,30]
[391524863,1760629841239,-300.0,0.00032469,30]
[391524864,1760629841248,-300.0,0.00032469,30]
[391524865,1760629841258,-600.0,0.00032469,30]
[391524866,1760629841267,-500.0,0.00032503,7]
[391524867,1760629841277,-500.0,0.00032558,7]
[391524868,1760629841288,-500.0,0.00032612,7]
[391524869,1760629841298,-500.0,0.00032655,2]
[391524870,1760629841308,-500.0,0.00032667,7]
[391524871,1760629841317,-500.0,0.00032722,7]
[391524872,1760629841327,-1000.0,0.00032752,5]
[391524873,1760629841337,-1000.0,0.00032752,5]
[391524874,1760629841352,-1132.56765264,0.00032752,3]
[391524875,1760629841362,-1072.24884897,0.00032752,5]
[391524876,1760629841373,-1000.0,0.00032763,5]
[391524877,1760629841383,-500.0,0.00032777,7]
[391524878,1760629841393,-500.0,0.00032832,7]
[391524879,1760629841403,-1500.0,0.00032868,5]
[391524880,1760629841414,-500.0,0.00032886,7]
[391524881,1760629841424,-500.0,0.00032929,2]
[391524882,1760629841434,-500.0,0.00032941,7]
[391524883,1760629841443,-195.4720132,0.00032986,2]
[391524884,1760629841453,-500.0,0.00032996,7]
[391524885,1760629841462,-878.75525665,0.00033002,2]
[391524886,1760629841472,-500.0,0.00033051,7]
[391524887,1760629841483,-500.0,0.00033106,7]
[391524888,1760629841493,-500.0,0.0003316,7]
[391524889,1760629841502,-500.0,0.00033203,2]
[391524890,1760629841512,-475.0,0.00033215,7]
[391524891,1760629841522,-1500.0,0.000333,5]
[391524892,1760629841532,-1500.0,0.000333,5]
[391524893,1760629841542,-500.0,0.00033311,5]
[391524894,1760629841552,-500.0,0.00033477,2]
[391524895,1760629841562,-878.75525665,0.00034331,2]
[391524896,1760629841571,-2161.0,0.00034465,2]
[391524897,1760629841581,-150.0,0.00034465,2]
[391524898,1760629841596,-300.0,0.00034573,7]
[391524899,1760629841607,-609.22,0.000352,2]
[391524900,1760629841617,-3843.07,0.000353,14]
[391524901,1760629841628,-878.75525665,0.0003566,2]
[391524902,1760629841638,-720.0,0.00035716,30]
[391524903,1760629841648,-4675.42904238,0.00036523,2]
[391524904,1760629841658,-3349.17,0.000369,14]
[391524905,1760629841668,-878.75525665,0.00036989,2]
[391524906,1760629841679,-156.655226,0.0003699,3]
[391524907,1760629841690,-220.42477701,0.00037,120]
[391524908,1760629841700,-1000.0,0.00037,8]
[391524909,1760629841710,-479839.5,0.00037,7]
[391524910,1760629841720,-500.0,0.00037089,5]
[391524911,1760629841730,-450.0,0.00037313,12]
[391524912,1760629841740,-2161.0,0.00037465,2]
[391524913,1760629841750,-486.99699831,0.00038356,120]
[391524914,1760629841760,-500.0,0.00039,30]
[391524915,1760629841770,-1000.0,0.00039,9]
[391524916,1760629841779,-22713.45852965,0.00039,30]
[391524917,1760629841789,-500.0,0.00039041,5]
[391524918,1760629841798,-5000.0,0.000392,120]
[391524919,1760629841807,-4999.97,0.000392,60]
[391524920,1760629841817,-864.0,0.00039287,90]
[391524921,1760629841827,-283933.89,0.00039444,7]
[391524922,1760629841836,-700.0,0.00039452,7]
[391524923,1760629841850,-609.22,0.000397,2]
[391524924,1760629841862,-1000.0,0.0003977,120]
[391524925,1760629841872,-1000.0,0.0003977,120]
[391524926,1760629841881,-42463.3711954,0.00039816,2]
[391524927,1760629841891,-1255.3570028,0.00039816,2]
[391524928,1760629841901,-1000.0,0.0003988,120]
[391524929,1760629841911,-1000.0,0.0003988,120]
[391524930,1760629841921,-1000.0,0.0003988,120]
[391524931,1760629841932,-1000.0,0.00039979,8]
[391524932,1760629841941,-1000.0,0.0003999,120]
[391524933,1760629841950,-1000.0,0.0003999,120]
[391524934,1760629841960,-616.0,0.00039999,120]
[391524935,1760629841969,-638.792,0.00039999,120]
[391524936,1760629841979,-738.7108776,0.00039999,120]
[391524937,1760629841988,-250.0,0.00039999,120]
[391524938,1760629841998,-250.0,0.00039999,120]
[391524939,1760629842007,-250.0,0.00039999,120]
[391524940,1760629842017,-250.0,0.00039999,120]
[391524941,1760629842027,-250.0,0.00039999,120]
[391524942,1760629842037,-250.0,0.00039999,120]
[391524943,1760629842047,-250.0,0.00039999,120]
[391524944,1760629842057,-226.17714604,0.00039999,120]
[391524945,1760629842067,-250.0,0.00039999,120]
[391524946,1760629842077,-656572.87850481,0.0004,14]
[391524947,1760629842087,-1000.0,0.0004,120]
[391524948,1760629842100,-1000.0,0.0004,120]
[391524949,1760629842109,-1000.0,0.0004,120]
[391524950,1760629842119,-1083.88,0.0004,120]
[391524951,1760629842129,-4215.70971399,0.0004,120]
[391524952,1760629842138,-159.270768,0.0004,60]
[391524953,1760629842147,-156.655226,0.0004,60]
[391524954,1760629842157,-1087.35,0.0004,120]
[391524955,1760629842167,-160.0,0.00040048,3]
[391524956,1760629842176,-282.4004382,0.00040048,5]
[391524957,1760629842185,-600.0,0.00040053,17]
[391524958,1760629842196,-767.288913,0.00040183,120]
[391524959,1760629842205,-700.0,0.00040274,7]
[391524960,1760629842215,-2161.0,0.00040465,2]
[391524961,1760629842224,-67381.31,0.00040795,15]
[391524962,1760629842234,-48489.37,0.00040795,15]
[391524963,1760629842243,-573.26049519,0.00040813,5]
[391524964,1760629842252,-502.42291765,0.00040813,5]
[391524965,1760629842261,-1000.0,0.00041,120]
[391524966,1760629842271,-1000.0,0.00041,10]
[391524967,1760629842280,-150.157105,0.00041,2]
[391524968,1760629842290,-151.0,0.00041011,7]
[391524969,1760629842300,-300.0,0.00041095,30]
[391524970,1760629842310,-3011.6971488,0.00041095,30]
[391524971,1760629842319,-50000.0,0.00041096,120]
[391524972,1760629842329,-316.316,0.00041096,120]
[391524973,1760629842343,-700.0,0.00041096,60]
[391524974,1760629842354,-500.0,0.00041096,30]
[391524975,1760629842363,-3843.07,0.000411,14]
[391524976,1760629842372,-79837.0,0.000412,120]
[391524977,1760629842382,-22899.57311522,0.00041268,120]
[391524978,1760629842391,-1599.99999999,0.000413,120]
[391524979,1760629842401,-8354.60605197,0.00041373,2]
[391524980,1760629842410,-4675.42904238,0.00041373,2]
[391524981,1760629842420,-1762.17311111,0.000414,120]
[391524982,1760629842429,-200.0,0.00041407,120]
[391524983,1760629842438,-2359.9166401,0.0004144,120]
[391524984,1760629842447,-131587.98322426,0.00041444,7]
[391524985,1760629842534,-1008001.78327574,0.00041444,7]
[391524986,1760629842544,-500.0,0.00041473,7]
[391524988,1760629842554,-500.0,0.00041473,10]
[391524991,1760629842564,-501.51297254,0.00041473,10]
[391524993,1760629842573,-421.72081318,0.00041473,10]
[391524995,1760629842583,-500.0,0.00041473,10]
[391524997,1760629842594,-500.0,0.00041473,10]
[391524998,1760629842603,-2250.0,0.000415,120]
[391525000,1760629842613,-1000.0,0.000415,120]
[391525002,1760629842622,-6282.81108179,0.000415,120]
[391525004,1760629842631,-700.0,0.00041644,60]
[391525005,1760629842640,-2000.0,0.000419,120]
[391525007,1760629842649,-3349.17,0.000419,14]
[391525009,1760629842659,-500.0,0.00041973,10]
[391525011,1760629842668,-500.0,0.00041973,10]
[391525013,1760629842678,-200.0,0.00042,120]
[391525015,1760629842688,-9000.0,0.00042,120]
[391525017,1760629842697,-354.916166,0.00042,120]
[391525019,1760629842707,-2500.0,0.00042,120]
[391525021,1760629842716,-1000.0,0.00042,120]
[391525023,1760629842726,-1000.0,0.00042,120]
[391525025,1760629842735,-1000.0,0.00042,120]
[391525027,1760629842745,-529340.32330322,0.00042,7]
[391525029,1760629842756,-60192.13706036,0.00042,7]
[391525032,1760629842776,-1431.20921018,0.00042,7]
[391525034,1760629842787,-1290.4912,0.00042,7]
[391525036,1760629842799,-10367.97498258,0.00042,7]
[391525050,1760629842883,-291.4820332,0.00034465,2]
[391525055,1760629842901,-119.5179668,0.00034465,2]
[391525058,1760629842911,-411.0,0.00037465,2]
[391525061,1760629842920,-411.0,0.00040465,2]
[391525064,1760629842932,-271927.66424366,0.00042,7]
[391525067,1760629842942,-25979.53883154,0.00042,120]
[391525070,1760629842952,-1000.0,0.00042021,7]
[391525073,1760629842962,-504.27827385,0.00042021,10]
[391525077,1760629842971,-1003.92937964,0.00042021,10]
[391525080,1760629842981,-700.0,0.00042192,60]
[391525083,1760629842990,-400000.0,0.0004222,30]
[391525085,1760629842999,-1921.5685,0.0004222,120]
[391525087,1760629843009,-1921.5685,0.0004222,120]
[391525089,1760629843019,-1921.5685,0.0004222,120]
[391525090,1760629843028,-1921.5685,0.0004222,120]
[391525091,1760629843038,-1785.54081397,0.000424,120]
[391525092,1760629843048,-1000.0,0.000425,120]
[391525093,1760629843058,-3000.0,0.000425,120]
[391525094,1760629843068,-500.0,0.00042521,10]
[391525095,1760629843077,-1500.0,0.00042568,7]
[391525097,1760629843086,-276.05,0.0004274,60]
[391525098,1760629843100,-750.0,0.00042792,22]
[391525099,1760629843110,-5250.0,0.000428,120]
[391525100,1760629843120,-13024.62479598,0.000428,30]
[391525101,1760629843130,-609.22,0.000428,7]
[391525102,1760629843141,-9842.24130494,0.0004288,30]
[391525103,1760629843150,-2000.0,0.000429,120]
[391525104,1760629843160,-500.0,0.00042973,10]
[391525105,1760629843169,-500.0,0.00042973,2]
[391525106,1760629843180,-40568.57220805,0.00043,60]
[391525107,1760629843189,-12100.0,0.00043,120]
[391525108,1760629843199,-285.48683951,0.00043,120]
[391525110,1760629843209,-426864.80010808,0.00043,120]
[391525112,1760629843220,-320619.14020532,0.00043,120]
[391525113,1760629843229,-34943.0,0.00043,120]
[391525114,1760629843240,-3500.0,0.00043,120]
[391525115,1760629843250,-1000.0,0.00043,120]
[391525116,1760629843260,-1000.0,0.00043,120]
[391525118,1760629843269,-6570.02302447,0.00043,30]
[391525120,1760629843279,-2000.0,0.00043116,7]
[391525121,1760629843288,-151.0,0.00043151,60]
[391525122,1760629843298,-230.2,0.00043151,30]
[391525123,1760629843308,-150.71,0.00043151,60]
[391525124,1760629843318,-500.0,0.00043151,30]
[391525125,1760629843328,-224.837373,0.00043194,60]
[391525126,1760629843338,-1000.0,0.00043216,90]
[391525127,1760629843351,-700.0,0.00043288,60]
[391525128,1760629843360,-1000.0,0.00043342,10]
[391525129,1760629843369,-300.0,0.000434,16]
[391525130,1760629843379,-250.1,0.000434,16]
[391525131,1760629843388,-804364.35211179,0.00043444,30]
[391525132,1760629843400,-4502.84,0.00043444,30]
[391525133,1760629843412,-16350.0,0.00043444,30]
[391525134,1760629843572,-182.00393583,0.00043444,30]
[391525135,1760629843584,-14060.21533685,0.00043444,30]
[391525136,1760629843601,-20668.3830147,0.00043444,30]
[391525137,1760629843612,-13709.78898805,0.00043444,30]
[391525138,1760629843624,-27750.0,0.00043444,30]
[391525139,1760629843675,-1606.97244131,0.00043444,30]
[391525140,1760629843690,-1469.24213891,0.00043444,30]
[391525141,1760629843726,-503.92769267,0.00032151,60]
[391525142,1760629843736,-165.19,0.0003699,10]
[391525143,1760629843746,-46715.39761323,0.00043444,30]
[391525144,1760629843758,-610.0,0.00043444,30]
[391525145,1760629843769,-169645.19328961,0.00043444,30]
[391525173,1760629846301,-1949.7,0.00043444,30]
[391525174,1760629846333,-3802.1999986,0.00043444,30]
[391525175,1760629846388,-34.62938266,0.00043444,30]
[391525176,1760629846399,-8600.18741044,0.00043444,30]
[391525177,1760629846411,-2294.68,0.00043444,30]
[391525178,1760629846423,-417.49757512,0.00043444,30]
[391525195,1760629941943,311.809386,0.00013699,2]
[391525196,1760629942161,311.809386,0.00020187,2]
[391525197,1760629942406,311.809386,0.00026676,2]
[391525245,1760630310853,150.0,0.00025205,2]
[391525246,1760630310883,297.0,0.00027,2]
[391525247,1760630311299,172.5,0.00025805,2]
[391525248,1760630311980,159.59556381,0.00026405,2]
[391525261,1760630392382,-152.27,0.00029411,15]
[391525262,1760630392470,-191.822228,0.00030482,120]
[391525263,1760630392556,-193.84351,0.00030503,60]
[391525264,1760630392646,-825.95,0.0003162,10]
[391525265,1760630392736,-500.0,0.00031672,120]
[391525266,1760630392824,-2009.5,0.000317,7]
[391525267,1760630392912,-500.0,0.00031714,60]
[391525268,1760630393013,-500.0,0.00031733,60]
[391525269,1760630393109,-500.0,0.00031733,60]
[391525270,1760630393199,-500.0,0.00031733,60]
[391525271,1760630393285,-500.0,0.00031733,60]
[391525272,1760630393374,-500.0,0.00031733,60]
[391525273,1760630393463,-500.0,0.00031733,60]
[391525274,1760630393553,-500.0,0.00031733,60]
[391525275,1760630393650,-500.0,0.00031733,60]
[391525276,1760630393740,-336.8722555,0.00031733,60]
[391525277,1760630393833,-500.0,0.00031809,120]
[391525278,1760630393926,-500.0,0.00031946,120]
[391525279,1760630394013,-500.0,0.00032083,120]
[391525280,1760630394107,-500.0,0.0003222,120]
[391525281,1760630394203,-500.0,0.00032357,120]
[391525282,1760630394301,-300.0,0.00032367,30]
[391525283,1760630394394,-300.0,0.00032367,30]
[391525284,1760630394489,-300.0,0.00032367,30]
[391525285,1760630394585,-300.0,0.00032367,30]
[391525286,1760630394690,-300.0,0.00032367,30]
[391525287,1760630394794,-300.0,0.00032367,30]
[391525288,1760630394894,-300.0,0.00032367,30]
[391525289,1760630394987,-300.0,0.00032367,30]
[391525290,1760630395086,-300.0,0.00032367,30]
[391525291,1760630395181,-300.0,0.00032367,30]
[391525292,1760630395273,-300.0,0.00032367,30]
[391525293,1760630395367,-300.0,0.00032367,30]
[391525294,1760630395464,-300.0,0.00032367,30]
[391525295,1760630395571,-300.0,0.00032367,30]
[391525296,1760630395675,-300.0,0.00032367,30]
[391525297,1760630395773,-500.0,0.00032494,120]
[391525298,1760630395864,-500.0,0.00032631,120]
[391525299,1760630395955,-500.0,0.00032768,120]
[391525300,1760630396051,-600.0,0.00032793,30]
[391525301,1760630396143,-500.0,0.00032905,120]
[391525302,1760630396241,-500.0,0.00033042,120]
[391525303,1760630396335,-500.0,0.00033179,120]
[391525304,1760630396421,-500.0,0.00033316,120]
[391525305,1760630396503,-500.0,0.00033453,120]
[391525306,1760630396589,-500.0,0.0003359,120]
[391525307,1760630396674,-500.0,0.00033727,120]
[391525308,1760630396760,-500.0,0.00033864,120]
[391525309,1760630396845,-616.94218126,0.00034001,120]
[391525310,1760630396934,-300.0,0.00034473,7]
[391525311,1760630397023,-191.822228,0.00035562,120]
[391525312,1760630397122,-720.0,0.00036072,30]
[391525313,1760630397212,-450.0,0.00037213,12]
[391525314,1760630397299,-5000.0,0.000392,120]
[391525315,1760630397394,-864.0,0.00039679,90]
[391525316,1760630397483,-600.0,0.00039953,17]
[391525317,1760630397573,-1000.0,0.0004,60]
[391525318,1760630397661,-191.822228,0.00040642,120]
[391525319,1760630397754,-10000.0,0.000409,120]
[391525320,1760630397841,-5047.345158,0.000412,120]
[391525321,1760630397932,-500.0,0.000418,60]
[391525322,1760630398026,-10000.0,0.000419,120]
[391525323,1760630398120,-500.0,0.00042348,60]
[391525324,1760630398209,-750.0,0.00042692,22]
[391525325,1760630398294,-10000.0,0.000429,120]
[391525326,1760630398378,-174.61919141,0.00043443,30]
[391525327,1760630398465,-500.0,0.00043444,60]
[391525328,1760630398551,-504562.1182,0.00043444,30]
[391525329,1760630398642,-1000.0,0.000435,120]
[391525330,1760630398731,-1000.0,0.000435,120]
[391525331,1760630398820,-4000.0,0.000435,120]
[391525332,1760630398908,-458229.12700909,0.000435,120]
[391525333,1760630398998,-2690.15,0.000435,14]
[391525334,1760630399085,-1000.06,0.000435,30]
[391525335,1760630399180,-1000.0,0.00043647,90]
[391525336,1760630399269,-873.96710677,0.000438,120]
[391525337,1760630399359,-1000.0,0.000438,90]
[391525338,1760630399451,-1000.0,0.000438,90]
[391525339,1760630399549,-180.0,0.000438,90]
[391525340,1760630399649,-365.53,0.000438,7]
[391525341,1760630399748,-2009.5,0.000438,14]
[391525342,1760630399848,-85000.0,0.00043833,120]
[391525343,1760630399940,-161.0,0.000439,120]